fUST/lending_fUST_20250218
["ID","MTS","AMOUNT","RATE_DAILY","PERIOD"]
[353428266,1739824252698,-500.0,0.00013945,2]
[353428268,1739824252707,-500.0,0.00013945,2]
[353428270,1739824252716,-554.19924038,0.00013945,2]
[353428272,1739824252726,-463.65,0.00013945,2]
[353428274,1739824252736,-500.0,0.00013945,2]
[353428276,1739824252745,-500.0,0.00013945,2]
[353428278,1739824252755,-500.0,0.00013945,2]
[353428280,1739824252764,-625.54,0.00013945,2]
[353428282,1739824252774,-500.0,0.00013945,2]
[353428284,1739824252784,-500.0,0.00013945,2]
[353428286,1739824252793,-500.0,0.00013945,2]
[353428288,1739824252803,-500.0,0.00013945,2]
[353428290,1739824252813,-500.0,0.00013945,2]
[353428292,1739824252822,-500.0,0.00013945,2]
[353428295,1739824252832,-1842.92,0.00013945,2]
[353428297,1739824252842,-500.0,0.00013945,2]
[353428299,1739824252852,-670.67,0.00013945,2]
[353428301,1739824252862,-500.0,0.00013945,2]
[353428303,1739824252873,-500.0,0.00013945,2]
[353428305,1739824252885,-500.0,0.00013945,2]
[353428307,1739824252895,-500.0,0.00013945,2]
[353428309,1739824252904,-500.0,0.00013945,2]
[353428311,1739824252913,-500.0,0.00013945,2]
[353428313,1739824252923,-500.0,0.00013945,2]
[353428315,1739824252932,-500.0,0.00013945,2]
[353428317,1739824252941,-500.0,0.00013945,2]
[353428319,1739824252950,-500.0,0.00013945,2]
[353428321,1739824252960,-152.20951222,0.00013945,2]
[353428323,1739824252970,-481.5977586,0.00013945,2]
[353428325,1739824252981,-500.0,0.00013945,2]
[353428327,1739824252991,-500.0,0.00013945,2]
[353428329,1739824253000,-500.0,0.00013945,2]
[353428331,1739824253010,-887.36,0.00013945,2]
[353428333,1739824253020,-500.0,0.00013955,2]
[353428335,1739824253030,-500.0,0.00013973,2]
[353428337,1739824253039,-300.0,0.00014,2]
[353428340,1739824253049,-39533.73170325,0.00014,2]
[353428355,1739824253187,-500.0,0.00014,2]
[353428364,1739824253266,-171213.35595341,0.00014,2]
[353428367,1739824253277,-23514.10870467,0.00014,2]
[353428369,1739824253288,-151.0,0.00014,2]
[353428371,1739824253297,-682.11,0.00014025,2]
[353428373,1739824253307,-500.0,0.00014027,2]
[353428375,1739824253316,-525.17211004,0.00014027,2]
[353428377,1739824253325,-500.0,0.00014027,2]
[353428379,1739824253334,-500.0,0.00014027,2]
[353428381,1739824253343,-500.0,0.00014027,2]
[353428383,1739824253354,-181.70077275,0.00014027,2]
[353428384,1739824253371,-500.0,0.00014027,2]
[353428386,1739824253380,-500.0,0.00014027,2]
[353428389,1739824253390,-500.0,0.00014027,2]
[353428391,1739824253400,-500.0,0.00014027,2]
[353428392,1739824253410,-500.0,0.00014027,2]
[353428394,1739824253419,-500.0,0.00014027,2]
[353428397,1739824253429,-500.0,0.00014027,2]
[353428399,1739824253440,-500.0,0.00014027,2]
[353428401,1739824253451,-500.0,0.00014027,2]
[353428403,1739824253460,-500.0,0.00014027,2]
[353428405,1739824253470,-500.0,0.00014027,2]
[353428407,1739824253480,-500.0,0.00014027,2]
[353428409,1739824253489,-500.0,0.00014027,2]
[353428411,1739824253498,-500.0,0.00014027,2]
[353428413,1739824253507,-430.16321683,0.00014027,2]
[353428415,1739824253521,-69.83678317,0.00014027,2]
[353428417,1739824253530,-500.0,0.00014027,2]
[353428419,1739824253540,-500.0,0.00014027,2]
[353428421,1739824253550,-500.0,0.00014027,2]
[353428423,1739824253559,-500.0,0.00014027,2]
[353428425,1739824253568,-283.39855538,0.00014027,2]
[353428427,1739824253580,-216.60144462,0.00014027,2]
[353428429,1739824253590,-500.0,0.00014027,2]
[353428431,1739824253599,-500.0,0.00014027,2]
[353428433,1739824253609,-500.0,0.00014027,2]
[353428435,1739824253620,-500.0,0.00014027,2]
[353428437,1739824253630,-500.0,0.00014027,2]
[353428439,1739824253639,-500.0,0.00014027,2]
[353428441,1739824253649,-500.0,0.00014027,2]
[353428443,1739824253659,-500.0,0.00014027,2]
[353428445,1739824253669,-557.43,0.00014027,2]
[353428447,1739824253679,-264.57296636,0.00014027,2]
[353428449,1739824253690,-531.43660287,0.00014027,2]
[353428451,1739824253700,-500.0,0.00014027,2]
[353428453,1739824253710,-500.0,0.00014027,2]
[353428455,1739824253720,-529.08148578,0.00014027,2]
[353428457,1739824253730,-500.0,0.00014027,2]
[353428459,1739824253740,-500.0,0.00014027,2]
[353428461,1739824253749,-500.0,0.00014027,2]
[353428463,1739824253759,-500.0,0.00014027,2]
[353428465,1739824253769,-188.47,0.00014027,2]
[353428467,1739824253778,-500.0,0.00014027,2]
[353428469,1739824253787,-500.0,0.00014027,2]
[353428471,1739824253797,-500.0,0.00014027,2]
[353428473,1739824253806,-500.0,0.00014027,2]
[353428475,1739824253816,-500.0,0.00014027,2]
[353428477,1739824253826,-500.0,0.00014027,2]
[353428479,1739824253835,-500.0,0.00014027,2]
[353428481,1739824253844,-500.0,0.00014027,2]
[353428483,1739824253854,-584.5,0.00014027,2]
[353428485,1739824253864,-500.0,0.00014027,2]
[353428487,1739824253874,-500.0,0.00014027,2]
[353428489,1739824253884,-2377.46,0.00014027,2]
[353428491,1739824253894,-500.0,0.00014027,2]
[353428493,1739824253903,-500.0,0.00014027,2]
[353428495,1739824253913,-500.0,0.00014027,2]
[353428507,1739824254018,-500.0,0.00014027,2]
[353428509,1739824254028,-500.0,0.00014027,2]
[353428511,1739824254038,-500.0,0.00014027,2]
[353428513,1739824254048,-500.0,0.00014027,2]
[353428515,1739824254058,-604.2,0.00014027,2]
[353428517,1739824254067,-577.51,0.00014027,2]
[353428519,1739824254077,-267.15,0.00014027,2]
[353428521,1739824254086,-633.33,0.00014027,2]
[353428523,1739824254096,-502.18510898,0.00014027,2]
[353428525,1739824254106,-191.85,0.00014027,2]
[353428528,1739824254115,-583.07,0.00014027,2]
[353428530,1739824254125,-478.14,0.00014027,2]
[353428532,1739824254135,-151.0,0.00014027,2]
[353428534,1739824254145,-2375.0,0.00014027,2]
[353428536,1739824254154,-500.0,0.00014027,2]
[353428538,1739824254164,-500.0,0.00014027,2]
[353428540,1739824254174,-1153.23,0.00014027,2]
[353428541,1739824254183,-500.0,0.00014027,2]
[353428543,1739824254193,-500.0,0.00014027,2]
[353428545,1739824254203,-436.05,0.00014027,2]
[353428547,1739824254214,-500.0,0.00014027,2]
[353428549,1739824254223,-500.0,0.00014027,2]
[353428551,1739824254233,-151.0,0.00014027,2]
[353428553,1739824254243,-500.0,0.00014027,2]
[353428555,1739824254253,-500.0,0.00014027,2]
[353428558,1739824254263,-520.3,0.00014027,2]
[353428559,1739824254273,-625.95,0.00014027,2]
[353428561,1739824254283,-500.0,0.00014027,2]
[353428564,1739824254292,-500.0,0.00014027,2]
[353428565,1739824254302,-500.0,0.00014027,2]
[353428567,1739824254313,-1842.92,0.00014027,2]
[353428570,1739824254325,-170.36,0.00014027,2]
[353428572,1739824254336,-670.67,0.00014027,2]
[353428574,1739824254345,-500.0,0.00014027,2]
[353428576,1739824254356,-500.0,0.00014027,2]
[353428578,1739824254369,-500.0,0.00014027,2]
[353428580,1739824254379,-500.0,0.00014027,2]
[353428582,1739824254388,-372.69,0.00014027,2]
[353428584,1739824254399,-500.0,0.00014027,2]
[353428585,1739824254409,-500.0,0.00014027,2]
[353428587,1739824254419,-635.9639783,0.00014027,2]
[353428589,1739824254428,-500.0,0.00014027,2]
[353428591,1739824254437,-500.0,0.00014027,2]
[353428593,1739824254447,-283.91,0.00014027,2]
[353428595,1739824254456,-887.36,0.00014027,2]
[353428597,1739824254465,-160.0,0.00014088,3]
[353428599,1739824254474,-682.11,0.00014108,2]
[353428601,1739824254484,-500.0,0.00014109,2]
[353428603,1739824254494,-500.0,0.00014109,2]
[353428605,1739824254503,-500.0,0.00014109,2]
[353428607,1739824254512,-500.0,0.00014109,2]
[353428609,1739824254522,-500.0,0.00014109,2]
[353428611,1739824254531,-500.0,0.00014109,2]
[353428613,1739824254541,-500.0,0.00014109,2]
[353428615,1739824254550,-500.0,0.00014109,2]
[353428617,1739824254560,-500.0,0.00014109,2]
[353428619,1739824254569,-500.0,0.00014109,2]
[353428621,1739824254579,-500.0,0.00014109,2]
[353428623,1739824254588,-500.0,0.00014109,2]
[353428625,1739824254598,-500.0,0.00014109,2]
[353428627,1739824254607,-511.19,0.00014109,2]
[353428629,1739824254617,-500.0,0.00014109,2]
[353428631,1739824254626,-303.93,0.00014109,2]
[353428633,1739824254636,-312.78,0.00014109,2]
[353428635,1739824254645,-539.86,0.00014109,2]
[353428637,1739824254655,-500.0,0.00014109,2]
[353428639,1739824254664,-500.0,0.00014109,2]
[353428641,1739824254674,-255.46,0.00014109,2]
[353428643,1739824254682,-500.0,0.00014109,2]
[353428645,1739824254692,-242.28,0.00014109,2]
[353428647,1739824254702,-293.04,0.00014109,2]
[353428649,1739824254711,-500.0,0.00014109,2]
[353428651,1739824254720,-500.0,0.00014109,2]
[353428653,1739824254730,-2377.46,0.00014109,2]
[353428655,1739824254739,-500.0,0.00014109,2]
[353428657,1739824254749,-512.54,0.00014109,2]
[353428659,1739824254759,-500.0,0.00014109,2]
[353428661,1739824254767,-500.0,0.00014109,2]
[353428663,1739824254776,-500.0,0.00014109,2]
[353428665,1739824254786,-500.0,0.00014109,2]
[353428667,1739824254795,-500.0,0.00014109,2]
[353428669,1739824254805,-604.2,0.00014109,2]
[353428671,1739824254814,-583.07,0.00014109,2]
[353428673,1739824254824,-2375.0,0.00014109,2]
[353428675,1739824254833,-500.0,0.00014109,2]
[353428677,1739824254843,-215.24,0.00014109,2]
[353428679,1739824254853,-1153.23,0.00014109,2]
[353428681,1739824254862,-500.0,0.00014109,2]
[353428682,1739824254872,-540.38,0.00014109,2]
[353428684,1739824254881,-500.0,0.00014109,2]
[353428686,1739824254891,-500.0,0.00014109,2]
[353428688,1739824254900,-584.29,0.00014109,2]
[353428690,1739824254909,-408.3,0.00014109,2]
[353428692,1739824254919,-500.0,0.00014109,2]
[353428694,1739824254928,-500.0,0.00014109,2]
[353428696,1739824254938,-1842.92,0.00014109,2]
[353428698,1739824254947,-670.67,0.00014109,2]
[353428700,1739824254956,-500.0,0.00014109,2]
[353428702,1739824254966,-500.0,0.00014109,2]
[353428704,1739824254976,-500.0,0.00014109,2]
[353428706,1739824254986,-500.0,0.00014109,2]
[353428708,1739824254995,-500.0,0.00014109,2]
[353428710,1739824255006,-500.0,0.00014109,2]
[353428712,1739824255015,-500.0,0.00014109,2]
[353428714,1739824255025,-887.36,0.00014109,2]
[353428716,1739824255034,-682.11,0.0001419,2]
[353428718,1739824255043,-345.07943658,0.00014191,2]
[353428735,1739824255201,-500.0,0.00013698,2]
[353428737,1739824255211,-154.92056342,0.00014191,2]
[353428739,1739824255220,-500.0,0.00014191,2]
[353428741,1739824255229,-507.58,0.00014191,2]
[353428743,1739824255239,-500.0,0.00014191,2]
[353428745,1739824255249,-500.0,0.00014191,2]
[353428747,1739824255259,-500.0,0.00014191,2]
[353428749,1739824255268,-500.0,0.00014191,2]
[353428751,1739824255277,-500.0,0.00014191,2]
[353428753,1739824255287,-263.34,0.00014191,2]
[353428754,1739824255296,-154.44,0.00014191,2]
[353428756,1739824255305,-190.11,0.00014191,2]
[353428758,1739824255315,-500.0,0.00014191,2]
[353428760,1739824255325,-500.0,0.00014191,2]
[353428762,1739824255335,-214.83,0.00014191,2]
[353428764,1739824255345,-500.0,0.00014191,2]
[353428766,1739824255354,-500.0,0.00014191,2]
[353428768,1739824255367,-349.15,0.00014191,2]
[353428770,1739824255377,-604.2,0.00014191,2]
[353428772,1739824255387,-583.07,0.00014191,2]
[353428774,1739824255396,-2375.0,0.00014191,2]
[353428776,1739824255407,-500.0,0.00014191,2]
[353428778,1739824255416,-1153.23,0.00014191,2]
[353428780,1739824255426,-500.0,0.00014191,2]
[353428781,1739824255436,-500.0,0.00014191,2]
[353428782,1739824255446,-500.0,0.00014191,2]
[353428783,1739824255455,-500.0,0.00014191,2]
[353428784,1739824255465,-1842.92,0.00014191,2]
[353428785,1739824255474,-670.67,0.00014191,2]
[353428786,1739824255483,-500.0,0.00014191,2]
[353428787,1739824255492,-500.0,0.00014191,2]
[353428788,1739824255502,-500.0,0.00014191,2]
[353428789,1739824255511,-500.0,0.00014191,2]
[353428790,1739824255520,-500.0,0.00014191,2]
[353428791,1739824255530,-480.84,0.00014191,2]
[353428792,1739824255539,-500.0,0.00014191,2]
[353428793,1739824255548,-887.36,0.00014191,2]
[353428794,1739824255557,-500.0,0.00014273,2]
[353428795,1739824255567,-294.32,0.00014273,2]
[353428796,1739824255576,-500.0,0.00014273,2]
[353428798,1739824255585,-249.34,0.00014273,2]
[353428800,1739824255594,-249.59,0.00014273,2]
[353428802,1739824255604,-284.75,0.00014273,2]
[353428804,1739824255614,-500.0,0.00014273,2]
[353428806,1739824255623,-500.0,0.00014273,2]
[353428808,1739824255633,-500.0,0.00014273,2]
[353428810,1739824255642,-463.76443743,0.00014273,2]
[353428821,1739824255737,-500.0,0.00014273,2]
[353428823,1739824255747,-604.2,0.00014273,2]
[353428825,1739824255757,-583.07,0.00014273,2]
[353428827,1739824255767,-2375.0,0.00014273,2]
[353428829,1739824255776,-500.0,0.00014273,2]
[353428831,1739824255786,-1153.23,0.00014273,2]
[353428833,1739824255795,-500.0,0.00014273,2]
[353428835,1739824255805,-500.0,0.00014273,2]
[353428837,1739824255814,-500.0,0.00014273,2]
[353428840,1739824255823,-500.0,0.00014273,2]
[353428842,1739824255833,-1842.92,0.00014273,2]
[353428843,1739824255842,-670.67,0.00014273,2]
[353428846,1739824255852,-448.65,0.00014273,2]
[353428847,1739824255862,-500.0,0.00014273,2]
[353428849,1739824255871,-500.0,0.00014273,2]
[353428851,1739824255881,-500.0,0.00014273,2]
[353428853,1739824255890,-443.37,0.00014273,2]
[353428855,1739824255900,-491.75729932,0.00014273,2]
[353428857,1739824255910,-887.36,0.00014273,2]
[353428859,1739824255920,-682.11,0.00014355,2]
[353428861,1739824255930,-404.21,0.00014356,2]
[353428863,1739824255940,-222.49,0.00014356,2]
[353428865,1739824255950,-210.08,0.00014356,2]
[353428867,1739824255959,-500.0,0.00014356,2]
[353428869,1739824255969,-500.0,0.00014356,2]
[353428871,1739824255978,-500.0,0.00014356,2]
[353428873,1739824255987,-604.2,0.00014356,2]
[353428875,1739824255997,-583.07,0.00014356,2]
[353428877,1739824256006,-2375.0,0.00014356,2]
[353428879,1739824256016,-500.0,0.00014356,2]
[353428881,1739824256025,-1153.23,0.00014356,2]
[353428883,1739824256035,-363.35,0.00014356,2]
[353428885,1739824256044,-500.0,0.00014356,2]
[353428887,1739824256054,-500.0,0.00014356,2]
[353428889,1739824256063,-500.0,0.00014356,2]
[353428891,1739824256073,-1842.92,0.00014356,2]
[353428893,1739824256082,-670.67,0.00014356,2]
[353428895,1739824256092,-500.0,0.00014356,2]
[353428897,1739824256101,-500.0,0.00014356,2]
[353428899,1739824256110,-887.36,0.00014356,2]
[353428901,1739824256119,-500.0,0.00014438,2]
[353428903,1739824256128,-607.33,0.00014438,2]
[353428905,1739824256137,-554.22,0.00014438,2]
[353428907,1739824256146,-604.2,0.00014438,2]
[353428909,1739824256155,-583.07,0.00014438,2]
[353428911,1739824256165,-2375.0,0.00014438,2]
[353428913,1739824256176,-500.0,0.00014438,2]
[353428915,1739824256185,-1153.23,0.00014438,2]
[353428917,1739824256194,-500.0,0.00014438,2]
[353428919,1739824256204,-500.0,0.00014438,2]
[353428922,1739824256214,-500.0,0.00014438,2]
[353428924,1739824256224,-1842.92,0.00014438,2]
[353428926,1739824256234,-670.67,0.00014438,2]
[353428928,1739824256243,-636.7,0.00014438,2]
[353428929,1739824256253,-500.0,0.00014438,2]
[353428932,1739824256263,-887.36,0.00014438,2]
[353428934,1739824256273,-682.11,0.00014519,2]
[353428936,1739824256283,-682.11,0.00014519,2]
[353428938,1739824256292,-682.11,0.00014519,2]
[353428940,1739824256302,-682.11,0.00014519,2]
[353428942,1739824256312,-682.11,0.00014519,2]
[353428944,1739824256322,-329.42,0.0001452,2]
[353428946,1739824256332,-604.2,0.0001452,2]
[353428948,1739824256341,-583.07,0.0001452,2]
[353428950,1739824256350,-2375.0,0.0001452,2]
[353428952,1739824256363,-500.0,0.0001452,2]
[353428954,1739824256372,-1153.23,0.0001452,2]
[353428956,1739824256382,-500.0,0.0001452,2]
[353428958,1739824256392,-500.0,0.0001452,2]
[353428960,1739824256402,-500.0,0.0001452,2]
[353428962,1739824256412,-1842.92,0.0001452,2]
[353428964,1739824256422,-670.67,0.0001452,2]
[353428966,1739824256432,-500.0,0.0001452,2]
[353428968,1739824256441,-887.36,0.0001452,2]
[353428970,1739824256451,-1000.0,0.00014521,2]
[353428972,1739824256460,-2292.0,0.00014555,2]
[353428974,1739824256469,-150.0,0.00014555,2]
[353428976,1739824256479,-151.0,0.00014555,2]
[353428978,1739824256488,-816.0592928,0.00014601,2]
[353428980,1739824256497,-604.2,0.00014602,2]
[353428982,1739824256507,-583.07,0.00014602,2]
[353428984,1739824256519,-2375.0,0.00014602,2]
[353428985,1739824256528,-500.0,0.00014602,2]
[353428987,1739824256538,-1153.23,0.00014602,2]
[353428989,1739824256550,-500.0,0.00014602,2]
[353428991,1739824256560,-500.0,0.00014602,2]
[353428994,1739824256570,-500.0,0.00014602,2]
[353428996,1739824256580,-1842.92,0.00014602,2]
[353428998,1739824256590,-670.67,0.00014602,2]
[353429000,1739824256599,-633.02919633,0.00014602,2]
[353429001,1739824256609,-887.36,0.00014602,2]
[353429003,1739824256618,-160.0,0.00014628,4]
[353429005,1739824256629,-604.2,0.00014684,2]
[353429008,1739824256640,-583.07,0.00014684,2]
[353429009,1739824256649,-151.0,0.00014684,2]
[353429012,1739824256660,-2375.0,0.00014684,2]
[353429013,1739824256670,-500.0,0.00014684,2]
[353429015,1739824256680,-1153.23,0.00014684,2]
[353429018,1739824256690,-500.0,0.00014684,2]
[353429020,1739824256699,-151.0,0.00014684,2]
[353429022,1739824256709,-500.0,0.00014684,2]
[353429024,1739824256718,-500.0,0.00014684,2]
[353429026,1739824256728,-1842.92,0.00014684,2]
[353429028,1739824256738,-670.67,0.00014684,2]
[353429030,1739824256747,-887.36,0.00014684,2]
[353429032,1739824256756,-27136.28513715,0.00014767,5]
[353429034,1739824256766,-604.2,0.00014767,2]
[353429036,1739824256776,-583.07,0.00014767,2]
[353429038,1739824256785,-2375.0,0.00014767,2]
[353429040,1739824256794,-500.0,0.00014767,2]
[353429042,1739824256804,-1153.23,0.00014767,2]
[353429044,1739824256814,-500.0,0.00014767,2]
[353429046,1739824256824,-500.0,0.00014767,2]
[353429048,1739824256834,-500.0,0.00014767,2]
[353429050,1739824256843,-1842.92,0.00014767,2]
[353429052,1739824256853,-670.67,0.00014767,2]
[353429054,1739824256862,-887.36,0.00014767,2]
[353429056,1739824256872,-1434.78478908,0.000148,2]
[353429058,1739824256882,-12083.247976,0.000148,2]
[353429060,1739824256892,-604.2,0.00014849,2]
[353429062,1739824256902,-583.07,0.00014849,2]
[353429064,1739824256911,-2375.0,0.00014849,2]
[353429066,1739824256921,-500.0,0.00014849,2]
[353429068,1739824256931,-1153.23,0.00014849,2]
[353429070,1739824256940,-500.0,0.00014849,2]
[353429072,1739824256950,-500.0,0.00014849,2]
[353429074,1739824256959,-500.0,0.00014849,2]
[353429076,1739824256969,-1842.92,0.00014849,2]
[353429078,1739824256978,-670.67,0.00014849,2]
[353429080,1739824256987,-887.36,0.00014849,2]
[353429082,1739824256998,-500.0,0.00014873,2]
[353429084,1739824257007,-500.0,0.00014873,2]
[353429086,1739824257017,-151.0,0.00014899,2]
[353429087,1739824257027,-150.0,0.000149,2]
[353429089,1739824257036,-206711.07348982,0.000149,2]
[353429092,1739824257050,-79252.71728397,0.000149,2]
[353429098,1739824257104,-63229.57290268,0.000149,2]
[353429101,1739824257115,-13697.78669905,0.000149,2]
[353431241,1739825147125,-217.85843712,0.00010263,2]
[353431242,1739825147150,-400.0,0.00010685,2]
[353431243,1739825147171,-386.36651361,0.00012585,2]
[353431247,1739825230081,-217.85843712,0.0001016,2]
[353431248,1739825230104,-113.63348639,0.00012585,2]
[353431249,1739825230126,-300.0,0.00012609,2]
[353431250,1739825230149,-974.14752829,0.0001261,2]
[353431251,1739825238131,-172.74200462,0.00012484,2]
[353431252,1739825238154,-305.09601723,0.0001261,2]
[353431855,1739825437755,-500.0,0.00012585,2]
[353431856,1739825437765,-300.0,0.00012609,2]
[353431857,1739825437775,-23620.75645448,0.0001261,2]
[353431858,1739825437785,-167.17528665,0.00013499,2]
[353431859,1739825437795,-170.69319222,0.00013598,2]
[353431860,1739825437805,-3000.0,0.00013598,2]
[353431861,1739825437815,-3000.0,0.00013598,2]
[353431862,1739825437827,-22839.90687122,0.00013599,2]
[353431863,1739825437837,-500.0,0.00013697,2]
[353431864,1739825437846,-231.01999312,0.00013697,2]
[353431865,1739825437856,-500.0,0.00013697,2]
[353431866,1739825437866,-500.0,0.00013697,2]
[353431867,1739825437875,-438.0178356,0.00013697,2]
[353431868,1739825437885,-500.0,0.00013697,2]
[353431869,1739825437895,-500.0,0.00013697,2]
[353431870,1739825437905,-500.0,0.00013697,2]
[353431871,1739825437915,-500.0,0.00013697,2]
[353431872,1739825437925,-190.94222704,0.00013697,2]
[353431873,1739825437934,-500.0,0.00013697,2]
[353431874,1739825437944,-539.81529506,0.00013697,2]
[353431875,1739825437953,-500.0,0.00013697,2]
[353431876,1739825437963,-500.0,0.00013697,2]
[353431877,1739825437975,-500.0,0.00013697,2]
[353431878,1739825437985,-500.0,0.00013697,2]
[353431880,1739825437995,-584.74964695,0.00013697,2]
[353431882,1739825438005,-500.0,0.00013697,2]
[353431885,1739825438015,-500.0,0.00013697,2]
[353431887,1739825438025,-500.0,0.00013697,2]
[353431889,1739825438035,-500.0,0.00013697,2]
[353431891,1739825438045,-500.0,0.00013697,2]
[353431893,1739825438054,-500.0,0.00013697,2]
[353431895,1739825438064,-500.0,0.00013697,2]
[353431897,1739825438072,-500.0,0.00013697,2]
[353431899,1739825438082,-500.0,0.00013697,2]
[353431901,1739825438092,-500.0,0.00013697,2]
[353431903,1739825438102,-500.0,0.00013697,2]
[353431905,1739825438111,-313.29428276,0.00013697,2]
[353431907,1739825438121,-346.27600435,0.00013698,2]
[353431909,1739825438131,-500.0,0.00013698,2]
[353431911,1739825438140,-500.0,0.00013698,2]
[353431913,1739825438150,-500.0,0.00013698,2]
[353431915,1739825438159,-500.0,0.00013698,2]
[353431932,1739825438312,-501.68634764,0.00013698,2]
[353431934,1739825438326,-500.0,0.00013698,2]
[353431936,1739825438336,-500.0,0.00013698,2]
[353431938,1739825438346,-500.0,0.00013698,2]
[353431940,1739825438356,-500.0,0.00013698,2]
[353431942,1739825438366,-500.0,0.00013698,2]
[353431943,1739825438375,-500.0,0.00013698,2]
[353431945,1739825438385,-500.0,0.00013698,2]
[353431948,1739825438395,-500.0,0.00013698,2]
[353431950,1739825438405,-500.0,0.00013698,2]
[353431952,1739825438415,-500.0,0.00013698,2]
[353431954,1739825438426,-500.0,0.00013698,2]
[353431956,1739825438436,-500.0,0.00013698,2]
[353431958,1739825438446,-542.38774332,0.00013698,2]
[353431960,1739825438457,-500.0,0.00013698,2]
[353431962,1739825438466,-583.85632625,0.00013698,2]
[353431964,1739825438477,-616.37680467,0.00013698,2]
[353431966,1739825438486,-500.0,0.00013698,2]
[353431968,1739825438496,-505.29200223,0.00013698,2]
[353431970,1739825438506,-500.0,0.00013698,2]
[353431972,1739825438516,-500.0,0.00013698,2]
[353431974,1739825438526,-500.0,0.00013698,2]
[353431976,1739825438536,-508.11271822,0.00013698,2]
[353431978,1739825438546,-500.0,0.00013698,2]
[353431980,1739825438556,-500.0,0.00013698,2]
[353431982,1739825438566,-500.0,0.00013698,2]
[353431984,1739825438576,-500.0,0.00013698,2]
[353431986,1739825438585,-500.0,0.00013698,2]
[353431988,1739825438595,-500.0,0.00013698,2]
[353431990,1739825438604,-500.0,0.00013698,2]
[353431992,1739825438614,-500.0,0.00013698,2]
[353431994,1739825438624,-500.0,0.00013698,2]
[353431996,1739825438633,-500.0,0.00013698,2]
[353431998,1739825438644,-500.0,0.00013698,2]
[353432000,1739825438653,-500.0,0.00013698,2]
[353432002,1739825438663,-469.66000095,0.00013698,2]
[353432004,1739825438673,-500.0,0.00013698,2]
[353432006,1739825438682,-500.0,0.00013698,2]
[353432008,1739825438691,-500.0,0.00013698,2]
[353432010,1739825438700,-500.0,0.00013698,2]
[353432012,1739825438710,-500.0,0.00013698,2]
[353432014,1739825438719,-500.0,0.00013698,2]
[353432016,1739825438729,-500.0,0.00013698,2]
[353432018,1739825438739,-500.0,0.00013698,2]
[353432020,1739825438750,-500.0,0.00013698,2]
[353432022,1739825438760,-500.0,0.00013698,2]
[353432024,1739825438769,-500.0,0.00013698,2]
[353432026,1739825438779,-500.0,0.00013698,2]
[353432027,1739825438789,-500.0,0.00013698,2]
[353432029,1739825438799,-500.0,0.00013698,2]
[353432032,1739825438808,-500.0,0.00013698,2]
[353432034,1739825438818,-500.0,0.00013698,2]
[353432036,1739825438828,-500.0,0.00013698,2]